Workbook

Sheet 12 BH Collection
A1: RURAL UTILITIES SERVICE
A2: SERVICING OF WATER AND WASTE PROGRAMS
A3: INFORMATION COLLECTION BURDEN HOURS
A4: OMB # 0572 - 0137
A5: 2024-11-21
A7: Estimated No. of Total Respondents
C8: WWD/ WWLG | D8: Watershed | E8: RCDL | F8: TAT | G8: ECWAG | H8: SWMG | I8: Colonias/ Tribal | J8: Total
A9: Routine Servicing Actions (0572-0137) | C9: 3,927 | D9: 1 | E9: 0 | F9: 0 | G9: 0 | H9: 0 | I9: 1 | J9: =SUM(C9:I9) -> 3,929
A10: Special Servicing Actions (0572-0137) | C10: 130 | D10: 1 | E10: 0 | F10: 1 | G10: 1 | H10: 1 | I10: 1 | J10: =SUM(C10:I10) -> 135
A11: Other OMB Packages that Use Forms from this Package - 0572-0121 | J11: 374
I12: Estimated No. of Total Respondents | J12: =SUM(J9:J11) -> 4,438
A14: Average hours per response | C14: =I15/G15 -> 2.152857 | J14: Number of responses per respondent | K14: =G15/J12 -> 2.94525
A15: Gray Columns have automatic formulas. DO NOT input numbers in these columns. | F15: TOTAL | G15: =SUM(G19:G50) -> 13,071 | I15: =SUM(I19:I50) -> 28,140 | K15: =SUM(K19:K50) -> $2,313,690
A16: (A) | B16: (B) | C16: (C) | D16: (D) | E16: (E) | F16: (F) | G16: (G) | H16: (H) | I16: (I) | J16: (J) | K16: (K)
A17: Regulation or OMB Package Reference | B17: Title | C17: Form No. (If Any) | D17: % of Respondents Line Item is Applicable To | E17: Estimated # of Respondents | F17: Reports Filed Annually | G17: Total Responses (E) x (F) | H17: Estimated # of Hours Per Response | I17: Estimated Total Hours (G) x (H) | J17: Prof. Wage Rate | K17: Total Cost (I) x (J)
A18: Routine Servicing Actions
A19: 1782.10 | B19: Audits and Year-End Financial Reports | C19: Written | D19: 100% | E19: =ROUND(($J$9*D19),0) -> 3,929 | F19: 1 | G19: =E19*F19 -> 3,929 | H19: 3.00 | I19: =ROUND((G19*H19),0) -> 11,787 | J19: ='12 Est Prof Wage Rate'!$G$29 -> $82.68 | K19: =ROUND((I19*J19),1) -> $974,549
A20: 1782.13(a)(9) | B20: Insurance | C20: Written | D20: 100% | E20: =ROUND(($J$9*D20),0) -> 3,929 | F20: 1 | G20: 3,929 | H20: 1.00 | I20: =ROUND((G20*H20),0) -> 3,929 | J20: ='12 Est Prof Wage Rate'!$G$29 -> $82.68 | K20: =ROUND((I20*J20),1) -> $324,850
A21: 1782.11 & .17(a)(3) | B21: Operating Budget | C21: Written | D21: 70% | E21: 2,750 | F21: 1 | G21: 2,750 | H21: 3.00 | I21: 8,250 | J21: ='12 Est Prof Wage Rate'!$G$29 -> $82.68 | K21: $682,110
A22: Special Servicing Actions
A23: 1782.2 | B23: Reamortization Request | C23: RD 1951-33 (0572-0137; 0575-0066) | D23: 40% | E23: =ROUND(($J$10*D23),0) -> 54 | F23: 1 | G23: =E23*F23 -> 54 | H23: 0.25 | I23: =ROUND((G23*H23),0) -> 14 | J23: ='12 Est Prof Wage Rate'!$G$29 -> $82.68 | K23: =ROUND((I23*J23),1) -> $1,158
A24: 1782.2 | B24: Offer to Convey Security | C24: RD 1955-1 (0572-0137; 0575-0172) | D24: 5% | E24: =ROUND(($J$10*D24),0) -> 7 | F24: 1 | G24: 7 | H24: 0.25 | I24: 2 | J24: ='12 Est Prof Wage Rate'!$G$29 -> $82.68 | K24: $165
A25: 1782.2 | B25: Application for Settlement of Indebtedness | C25: RD 3560-57 (0572-0137; 0575-0189) | D25: 5% | E25: 7 | F25: 1 | G25: 7 | H25: 1.00 | I25: 7 | J25: ='12 Est Prof Wage Rate'!$G$29 -> $82.68 | K25: $579
A26: 1782.9 | B26: Environmental Evaluation | C26: Written | D26: 15% | E26: 20 | F26: 1 | G26: 20 | H26: 10.00 | I26: 200 | J26: ='12 Est Prof Wage Rate'!$G$29 -> $82.68 | K26: $16,536
A27: 1782.11 | B27: Application for Commercial Credit - Graduation | C27: Written | D27: 90% | E27: 122 | F27: 1 | G27: 122 | H27: 3.00 | I27: 366 | J27: ='12 Est Prof Wage Rate'!$G$29 -> $82.68 | K27: $30,261
A28: 1782.11 & .17(a)(3) | B28: Statement of Budget, Income, and Equity | C28: RD 442-2 (0572-0137; 0575-0115, 0200 ) | D28: 100% | E28: 135 | F28: 1 | G28: 135 | H28: 2.50 | I28: 338 | J28: ='12 Est Prof Wage Rate'!$G$29 -> $82.68 | K28: $27,946
A29: 1782.11 & .17(a)(3) | B29: Balance Sheet | C29: RD 442-3 (0575-0015) | D29: 100% | E29: 135 | F29: 1 | G29: 135 | H29: 1.00 | I29: 135 | J29: ='12 Est Prof Wage Rate'!$G$29 -> $82.68 | K29: $11,162
A30: 1782.12, .13(a)(3),(6), .17 (a)(6), & .20 | B30: Appraisal | C30: Written | D30: 40% | E30: 54 | F30: 1 | G30: 54 | H30: 1.50 | I30: 81 | J30: ='12 Est Prof Wage Rate'!$G$29 -> $82.68 | K30: $6,697
A31: 1782.12(a)(4)(i) | B31: Conveyance Instrument - Purchase Agreement, etc. | C31: Written | D31: 10% | E31: 14 | F31: 1 | G31: 14 | H31: 2.00 | I31: 28 | J31: ='12 Est Prof Wage Rate'!$G$29 -> $82.68 | K31: $2,315
A32: 1782.12(a)(4)(ii) & .13 (a)(5) | B32: Rights and Obligations Assumption Agreement | C32: Written | D32: 10% | E32: 14 | F32: 1 | G32: 14 | H32: 1.00 | I32: 14 | J32: ='12 Est Prof Wage Rate'!$G$29 -> $82.68 | K32: $1,158
A33: 1782.13(a)(7) & .17(a) | B33: Consent of Lienholders | C33: Written | D33: 80% | E33: 108 | F33: 1 | G33: 108 | H33: 1.00 | I33: 108 | J33: ='12 Est Prof Wage Rate'!$G$29 -> $82.68 | K33: $8,929
A34: 1782.13(a) (8) | B34: Letter of Intent to Meet Conditions | C34: RD 1942-46 (0572-0137; 0575-0015; 0570-0021, 0061, 0062) | D34: 40% | E34: 54 | F34: 1 | G34: 54 | H34: 1 | I34: 54 | J34: ='12 Est Prof Wage Rate'!$G$29 -> $82.68 | K34: $4,465
A35: 1782.13(a)(8) | B35: Letter of Conditions | C35: Written | D35: 40% | E35: 54 | F35: 1 | G35: 54 | H35: 1.00 | I35: 54 | J35: ='12 Est Prof Wage Rate'!$G$29 -> $82.68 | K35: $4,465
A36: 1782.13(a)(9) | B36: Insurance | C36: Written | D36: 80% | E36: 108 | F36: 1 | G36: 108 | H36: 1.00 | I36: 108 | J36: ='12 Est Prof Wage Rate'!$G$29 -> $82.68 | K36: $8,929
A37: 1782.13(a)(11), (b), .17(a)(4), & .20 | B37: Security Instruments | C37: Written | D37: 80% | E37: 108 | F37: 1 | G37: 108 | H37: 2.00 | I37: 216 | J37: ='12 Est Prof Wage Rate'!$G$29 -> $82.68 | K37: $17,859
A38: 1782.13(d)(1) | B38: Assumption/Disposition of Grant Agreement Terms | C38: Written | D38: 10% | E38: 14 | F38: 1 | G38: 14 | H38: 2.00 | I38: 28 | J38: ='12 Est Prof Wage Rate'!$G$29 -> $82.68 | K38: $2,315
A39: 1782.17(a)(1) | B39: Subordination/Parity Narrative Request | C39: Written | D39: 50% | E39: 68 | F39: 1 | G39: 68 | H39: 2.00 | I39: 136 | J39: ='12 Est Prof Wage Rate'!$G$29 -> $82.68 | K39: $11,245
A40: 1782.17(a)(5) | B40: Statement on availability to obtain credit elsewhere | C40: Written | D40: 80% | E40: 108 | F40: 1 | G40: 108 | H40: 2.00 | I40: 216 | J40: ='12 Est Prof Wage Rate'!$G$29 -> $82.68 | K40: $17,859
A41: 1782.19 | B41: Management Agreements | C41: Written | D41: 30% | E41: 41 | F41: 1 | G41: 41 | H41: 3.00 | I41: 123 | J41: ='12 Est Prof Wage Rate'!$G$29 -> $82.68 | K41: $10,170
A42: 1782.19 | B42: Lease Contracts (Facility, Mineral, etc.) | C42: Written | D42: 30% | E42: 41 | F42: 1 | G42: 41 | H42: 3.00 | I42: 123 | J42: ='12 Est Prof Wage Rate'!$G$29 -> $82.68 | K42: $10,170
A43: 1780.2 | B43: Bankruptcy Orders and Supplemental Information | C43: Written | D43: 5% | E43: 7 | F43: 1 | G43: 7 | H43: 1.50 | I43: 11 | J43: ='12 Est Prof Wage Rate'!$G$29 -> $82.68 | K43: $910
A44: 1782.2 | B44: Repayment Agreement | C44: Written | D44: 5% | E44: 7 | F44: 1 | G44: 7 | H44: 1.00 | I44: 7 | J44: ='12 Est Prof Wage Rate'!$G$29 -> $82.68 | K44: $579
A45: 1782.2 | B45: Rescheduling Agreement | C45: Written | D45: 40% | E45: 54 | F45: 1 | G45: 54 | H45: 2.00 | I45: 108 | J45: ='12 Est Prof Wage Rate'!$G$29 -> $82.68 | K45: $8,929
A46: 1782.2 | B46: Voluntary Conveyance- Board Resolution | C46: Written | D46: 5% | E46: 7 | F46: 1 | G46: 7 | H46: 2.00 | I46: 14 | J46: ='12 Est Prof Wage Rate'!$G$29 -> $82.68 | K46: $1,158
A47: Other OMB Packages that Use Forms from this Package
A48: 0572-0121 | B48: Statement of Budget, Income, and Equity | C48: RD 442-2 (0572-0137; 0575-0115, 0200 ) | E48: 374 | F48: 1 | G48: =E48*F48 -> 374 | H48: 2.50 | I48: =ROUND((G48*H48),0) -> 935 | J48: $75.00 | K48: =ROUND((I48*J48),1) -> $70,125
A49: 0572-0121 | B49: Balance Sheet | C49: RD 442-3 (0575-0015) | E49: 374 | F49: 1 | G49: =E49*F49 -> 374 | H49: 1.00 | I49: 374 | J49: $75.00 | K49: $28,050
A50: 0572-0121 | B50: Letter of Intent to Meet Conditions | C50: RD 1942-46 (0572-0137; 0575-0015; 0570-0021, 0061, 0062) | E50: 374 | F50: 1 | G50: 374 | H50: 1 | I50: 374 | J50: $75.00 | K50: $28,050

Sheet 12 Not Inc in BH
A1: ='12 BH Collection'!A1 -> RURAL UTILITIES SERVICE
A2: ='12 BH Collection'!A2 -> SERVICING OF WATER AND WASTE PROGRAMS
A3: ='12 BH Collection'!A3 -> INFORMATION COLLECTION BURDEN HOURS
A4: ='12 BH Collection'!A4 -> OMB # 0572 - 0137
A5: ='12 BH Collection'!A5 -> 2024-11-21
C7: WWD/ WWLG | D7: Watershed | E7: RCDL | F7: TAT | G7: ECWAG | H7: SWMG | I7: Colonias/ Tribal | J7: Total
A8: Estimated No. of Total Respondents - Routine Servicing Actions | C8: ='12 BH Collection'!C9 -> 3,927 | D8: ='12 BH Collection'!D9 -> 1 | E8: ='12 BH Collection'!E9 -> 0 | F8: ='12 BH Collection'!F9 -> 0 | G8: ='12 BH Collection'!G9 -> 0 | H8: ='12 BH Collection'!H9 -> 0 | I8: ='12 BH Collection'!I9 -> 1 | J8: =SUM(C8:I8) -> 3,929
A9: Estimated No. of Total Respondents - Special Servicing Actions | C9: ='12 BH Collection'!C10 -> 130 | D9: ='12 BH Collection'!D10 -> 1 | E9: ='12 BH Collection'!E10 -> 0 | F9: ='12 BH Collection'!F10 -> 1 | G9: ='12 BH Collection'!G10 -> 1 | H9: ='12 BH Collection'!H10 -> 1 | I9: ='12 BH Collection'!I10 -> 1 | J9: =SUM(C9:I9) -> 135
I10: Estimated No. of Total Respondents | J10: =SUM(J8:J9) -> 4,064
A12: Average hours per response | C12: =I13/G13 -> 2.580 | J12: Number of responses per respondent | K12: =G13/J10 -> 6.63
A13: Gray Columns have automatic formulas. DO NOT input numbers in these columns. | F13: TOTAL | G13: =SUM(G16:G49) -> 26,953 | I13: =SUM(I16:I49) -> 69,543 | K13: =SUM(K16:K49) -> $5,749,840
A14: (A) | B14: (B) | C14: (C) | D14: (D) | E14: (E) | F14: (F) | G14: (G) | H14: (H) | I14: (I) | J14: (J) | K14: (K)
A15: Regulation Reference | B15: Title | C15: Form No. (If Any) | D15: % of Respondents Line Item is Applicable To | E15: Estimated # of Respondents | F15: Reports Filed Annually | G15: Total Responses (E) x (F) | H15: Estimated # of Hours Per Response | I15: Estimated Total Hours (G) x (H) | J15: Prof. Wage Rate | K15: Total Cost (I) x (J)
A16: Routine Servicing Actions
A17: 1782.11 & .17(a)(3) | B17: Operating Budget | C17: RD 442-7 (0575-0015) | D17: 30% | E17: =$J$8*D17 -> 1,179 | F17: 1 | G17: =E17*F17 -> 1,179 | H17: 5.00 | I17: =IF((H17*G17)="","",(H17*G17)) -> 5,894 | J17: ='12 Est Prof Wage Rate'!$G$29 -> $82.68 | K17: =IF((J17*I17)="","",(J17*I17)) -> $487,275
A18: Special Servicing Actions
A19: 1782.2 | B19: Community Programs Workout Agreement | C19: RD 1951-10 (0575-0066) | D19: 70% | E19: =$J$8*D19 -> 2,750 | F19: 1 | G19: =E19*F19 -> 2,750 | H19: 1.00 | I19: =IF((H19*G19)="","",(H19*G19)) -> 2,750 | J19: ='12 Est Prof Wage Rate'!$G$29 -> $82.68 | K19: =IF((J19*I19)="","",(J19*I19)) -> $227,395
A20: 1782.5 | B20: Compliance Review | C20: RD 400-8 (0570-0062; 0575-0018, 0575-0189) | D20: 100% | E20: =$J$8*D20 -> 3,929 | F20: 1 | G20: =E20*F20 -> 3,929 | H20: 8.00 | I20: =IF((H20*G20)="","",(H20*G20)) -> 31,432 | J20: ='12 Est Prof Wage Rate'!$G$29 -> $82.68 | K20: =IF((J20*I20)="","",(J20*I20)) -> $2,598,798
A21: 1782.8 | B21: Authorization Agreement for Preauth. Payments | C21: RD 3550-28 (0575-0184) | D21: 100% | E21: =$J$8*D21 -> 3,929 | F21: 1 | G21: =E21*F21 -> 3,929 | H21: 0.50 | I21: =IF((H21*G21)="","",(H21*G21)) -> 1,965 | J21: ='12 Est Prof Wage Rate'!$G$29 -> $82.68 | K21: =IF((J21*I21)="","",(J21*I21)) -> $162,425
A22: 1782.12 & .17(e)(1) | B22: Application for Partial Release, Subordination, or Consent | C22: RD 465-1 (0560-0236) | D22: 40% | E22: 1,572 | F22: 1 | G22: 1,572 | H22: 1.00 | I22: 1,572 | J22: ='12 Est Prof Wage Rate'!$G$29 -> $82.68 | K22: $129,940
A23: 1782.12(a)(4)(i) | B23: Assurance Agreement | C23: RD 400-4 (0575-0201) | D23: 54% | E23: 2,122 | F23: 1 | G23: 2,122 | H23: 0.25 | I23: 530 | J23: ='12 Est Prof Wage Rate'!$G$29 -> $82.68 | K23: $43,855
A24: 1782.13(a) | B24: Applicant Certification, Federal Collection Policies for Consumer/Commercial Debts | C24: RD 1910-11 (0570-0062) | D24: 54% | E24: 2,122 | F24: 1 | G24: 2,122 | H24: 0.25 | I24: 530 | J24: ='12 Est Prof Wage Rate'!$G$29 -> $82.68 | K24: $43,855
A25: 1782.13(a)(1) | B25: Application for Federal Assistance- Initial App. | C25: SF 424 (4040-0004) | D25: 54% | E25: 2,122 | F25: 1 | G25: =E25*F25 -> 2,122 | H25: 1.00 | I25: =IF((H25*G25)="","",(H25*G25)) -> 2,122 | J25: ='12 Est Prof Wage Rate'!$G$29 -> $82.68 | K25: =IF((J25*I25)="","",(J25*I25)) -> $175,419
A26: 1782.13(a)(1) | B26: Budget Information--Non-Construction Programs | C26: SF-424A (4040-0006) | D26: 54% | E26: 2,122 | F26: 1 | G26: =E26*F26 -> 2,122 | H26: 1.00 | I26: =IF((H26*G26)="","",(H26*G26)) -> 2,122 | J26: ='12 Est Prof Wage Rate'!$G$29 -> $82.68 | K26: =IF((J26*I26)="","",(J26*I26)) -> $175,419
A27: 1782.13(a)(10) | B27: Community Programs Assumption Agreement | C27: RD 1951-15 (0575-0066) | D27: 20% | E27: 786 | F27: 1 | G27: 786 | H27: 0.50 | I27: 393 | J27: ='12 Est Prof Wage Rate'!$G$29 -> $82.68 | K27: $32,485
A28: 1782.13(a)(11) | B28: Preliminary Title Opinion | C28: RD 1927-9 (0575-0147, 0575-0189) | D28: 10% | E28: 393 | F28: 1 | G28: =E28*F28 -> 393 | H28: 1.50 | I28: =IF((H28*G28)="","",(H28*G28)) -> 589 | J28: ='12 Est Prof Wage Rate'!$G$29 -> $82.68 | K28: =IF((J28*I28)="","",(J28*I28)) -> $48,727
A29: 1782.17(a)(3) & .20(a) | B29: Operating Budget | C29: RD 442-7 (0575-0015) | D29: 100% | E29: 3,929 | F29: 1 | G29: =E29*F29 -> 3,929 | H29: 5.00 | I29: =IF((H29*G29)="","",(H29*G29)) -> 19,645 | J29: ='12 Est Prof Wage Rate'!$G$29 -> $82.68 | K29: =IF((J29*I29)="","",(J29*I29)) -> $1,624,249
E30: 0 | G30: =E30*F30 -> 0 | I30: =IF((H30*G30)="","",(H30*G30)) -> 0 | J30: ='12 Est Prof Wage Rate'!$G$29 -> $82.68 | K30: =IF((J30*I30)="","",(J30*I30)) -> $0
E31: 0 | G31: 0 | I31: 0 | J31: ='12 Est Prof Wage Rate'!$G$29 -> $82.68 | K31: $0
E32: 0 | G32: =E32*F32 -> 0 | I32: =IF((H32*G32)="","",(H32*G32)) -> 0 | J32: ='12 Est Prof Wage Rate'!$G$29 -> $82.68 | K32: =IF((J32*I32)="","",(J32*I32)) -> $0
E33: 0 | G33: 0 | I33: 0 | J33: ='12 Est Prof Wage Rate'!$G$29 -> $82.68 | K33: $0
E34: 0 | G34: 0 | I34: 0 | J34: ='12 Est Prof Wage Rate'!$G$29 -> $82.68 | K34: $0
E35: 0 | G35: 0 | I35: 0 | J35: ='12 Est Prof Wage Rate'!$G$29 -> $82.68 | K35: $0
E36: 0 | G36: 0 | I36: 0 | J36: ='12 Est Prof Wage Rate'!$G$29 -> $82.68 | K36: $0
E37: 0 | G37: 0 | I37: 0 | J37: ='12 Est Prof Wage Rate'!$G$29 -> $82.68 | K37: $0
E38: 0 | G38: 0 | I38: 0 | J38: ='12 Est Prof Wage Rate'!$G$29 -> $82.68 | K38: $0
E39: 0 | G39: =E39*F39 -> 0 | I39: =IF((H39*G39)="","",(H39*G39)) -> 0 | J39: ='12 Est Prof Wage Rate'!$G$29 -> $82.68 | K39: =IF((J39*I39)="","",(J39*I39)) -> $0
E40: 0 | G40: =E40*F40 -> 0 | I40: =IF((H40*G40)="","",(H40*G40)) -> 0 | J40: ='12 Est Prof Wage Rate'!$G$29 -> $82.68 | K40: =IF((J40*I40)="","",(J40*I40)) -> $0
E41: 0 | G41: 0 | I41: 0 | J41: ='12 Est Prof Wage Rate'!$G$29 -> $82.68 | K41: $0
E42: 0 | G42: 0 | I42: 0 | J42: ='12 Est Prof Wage Rate'!$G$29 -> $82.68 | K42: $0
E43: 0 | G43: 0 | I43: 0 | J43: ='12 Est Prof Wage Rate'!$G$29 -> $82.68 | K43: $0
E44: 0 | G44: 0 | I44: 0 | J44: ='12 Est Prof Wage Rate'!$G$29 -> $82.68 | K44: $0
E45: 0 | G45: 0 | I45: 0 | J45: ='12 Est Prof Wage Rate'!$G$29 -> $82.68 | K45: $0
E46: 0 | G46: 0 | I46: 0 | J46: ='12 Est Prof Wage Rate'!$G$29 -> $82.68 | K46: $0
E47: 0 | G47: 0 | I47: 0 | J47: ='12 Est Prof Wage Rate'!$G$29 -> $82.68 | K47: $0
E48: 0 | G48: 0 | I48: 0 | J48: ='12 Est Prof Wage Rate'!$G$29 -> $82.68 | K48: $0
E49: 0 | G49: 0 | I49: 0 | J49: ='12 Est Prof Wage Rate'!$G$29 -> $82.68 | K49: $0

Sheet 12 Est Prof Wage Rate
A1: ='12 BH Collection'!A1 -> RURAL UTILITIES SERVICE
A2: ='12 BH Collection'!A2 -> SERVICING OF WATER AND WASTE PROGRAMS
A3: ='12 BH Collection'!A3 -> INFORMATION COLLECTION BURDEN HOURS
A4: ='12 BH Collection'!A4 -> OMB # 0572 - 0137
A5: ='12 BH Collection'!A5 -> 2024-11-21
A7: Instructions:
A8: 1. Use the U.S. Bureau of Labor Statistics Occupational Emplyment and Wage Statistics Link below to complete Columns A, B, C for the table below.
A9: a. Click the link: | B9: https://www.bls.gov/oes/tables.htm
A10: b. Under the latest Month Year (May 2023) click Occupation Profiles
A11: c. Use the Occupational Titles to choose which professions (A) need to be added to the table below. You can more than one occupation or just one.
A12: d. The code in front of each Occupational Title is the Occupation Code that goes in (B) for the table below.
A13: e. When you click on each Occupational Titles, choose the Mean Hourly Wage to input in (C) for the table below.
A14: 2. Use the U.S. Bureau of Labor Economic News Release, Employer Costs for Employee Compension to complete Column D for the table below.
A15: a. Click the link: | B15: https://www.bls.gov/news.release/ecec.toc.htm
A16: b. Choose "The PDF verison of the news release" link
A17: c. The latest (September 10, 2024) News Release for Employer Costs for Employee Compensation - June 2024 opens in separate tab.
A18: d. On first page, second paragraph use the benefit costs % of: | D18: 29.70%
A19: 3. For each profession fill in the % for (F). The total for the column should be 100%.
A20: a. Note that if there is only one profession then (F) would be 100%.
A22: Gray Columns have automatic formulas. DO NOT input numbers in these columns.
A23: (A) | B23: (B) | C23: (C) | D23: (D) | E23: (E) | F23: (F) | G23: (G)
A24: Profession | B24: Bureau of Labor Occupation Code 1.d | C24: Mean Wage 1.e | D24: Benefits 2 (C) * (2.d) | E24: Total Hourly Wage (C ) + (D) | F24: % Time Spent on Burden | G24: Weighted Hourly Salary (E) * (F)
A25: General and Operations Manager | B25: 11-1021 | C25: $62.18 | D25: =IF(C25=0,"",(C25*$D$18)) -> $18.47 | E25: =IF(SUM(C25:D25)=0,"",SUM(C25:D25)) -> $80.65 | F25: 50% | G25: =ROUND((E25*F25),2) -> $40.32
A26: Civil Engineers | B26: 17-2051 | C26: $48.64 | D26: =IF(C26=0,"",(C26*$D$18)) -> $14.45 | E26: =IF(SUM(C26:D26)=0,"",SUM(C26:D26)) -> $63.09 | F26: 10% | G26: =ROUND((E26*F26),2) -> $6.31
A27: Lawyers | B27: 23-1011 | C27: $84.84 | D27: =IF(C27=0,"",(C27*$D$18)) -> $25.20 | E27: =IF(SUM(C27:D27)=0,"",SUM(C27:D27)) -> $110.04 | F27: 30% | G27: $33.01
A28: Court, Municipal, and License Clerks | B28: 43-4031 | C28: $23.44 | D28: =IF(C28=0,"",(C28*$D$18)) -> $6.96 | E28: =IF(SUM(C28:D28)=0,"",SUM(C28:D28)) -> $30.40 | F28: 10% | G28: $3.04
A29: TOTAL | D29: =IF(C29=0,"",(C29*#REF!)) ->  | F29: =SUM(F25:F28) -> 100% | G29: =SUM(G25:G28) -> $82.68

Sheet 14 Ann Cost to Fed Gov Est
A1: ='12 BH Collection'!A1 -> RURAL UTILITIES SERVICE
A2: ='12 BH Collection'!A2 -> SERVICING OF WATER AND WASTE PROGRAMS
A3: ='12 BH Collection'!A3 -> INFORMATION COLLECTION BURDEN HOURS
A4: ='12 BH Collection'!A4 -> OMB # 0572 - 0137
A5: ='12 BH Collection'!A5 -> 2024-11-21
A7: 1. OPM GS & SES Pay Tables:
A8: Click Link | B8: Pay & Leave (opm.gov)
A9: Click "pay tables" from first paragraph
A10: Click current Year at top under Salaries & Wages
A12: a. OPM GS Pay Tables: Under "General Schedule (GS) & Locality Pay Tables" click 20## GS Pay Tables (ex. 2024 GS Pay Tables)
A13: Then choose Annual Rate Table for St. Louis-St. Charles-Farminton, MO-IL.
A15: b. OPM SES Schedules: Under "Executive & Senior Level Employee Pay Tables" click "Rates of Pay for the Executive Schedule"
A16: Then choose Annual Rate Table for Basic Rates of Pay for Members of the Senior Executive Service.
A18: 2. Benefit % (OMB Memo M-08 13) | B18: https://www.whitehouse.gov/wp-content/uploads/legacy_drupal_files/omb/memoranda/2008/m08-13.pdf | K18: 36.25%
A20: Gray & Blue Columns have automatic formulas. DO NOT input numbers in these columns. | G20: Total | H20: =SUM(H23:H34) -> 255.00 | I20: =I23+I24+I34 -> $18,083.59 | K20: =K23+K24+K34 -> $4,834,769
A21: Staff Position | B21: GS Grade | C21: GS Step | D21: GS Salary | E21: Hourly Rate Calc | F21: Benefits Calc | G21: Total Salary Rate Calc | H21: Hours Required | I21: Cost Subtotals | J21: # of Responses | K21: Total Costs
A22: Routine Servicing Actions Reviews
A23: Loan Specialist - Field Office | B23: 12 | C23: 5 | D23: $100,926 | E23: =(D23/52)/40 -> $48.52 | F23: =E23*$K$18 -> $17.59 | G23: =E23+F23 -> $66.11 | H23: 8.00 | I23: =ROUND((G23*H23),2) -> $528.89 | J23: ='12 BH Collection'!J9 -> 3,929 | K23: =J23*I23 -> $2,078,009
A24: Special Servicing Actions Reviews | I24: =ROUND(SUM(I25:I32),2) -> $17,422.48 | J24: 135 | K24: =I24*J24 -> $2,352,035
A25: Loan Specialist - Field Office | B25: 12 | C25: 5 | D25: $100,926 | E25: =(D25/52)/40 -> $48.52 | F25: =E25*$K$18 -> $17.59 | G25: =E25+F25 -> $66.11 | H25: 100.00 | I25: =H25*G25 -> $6,611.14
A26: Program Director - State Office | B26: 13 | C26: 5 | D26: $120,018 | E26: =(D26/52)/40 -> $57.70 | F26: =E26*$K$18 -> $20.92 | G26: =E26+F26 -> $78.62 | H26: 40.00 | I26: =H26*G26 -> $3,144.70
A27: Loan Specialist - State Office | B27: 12 | C27: 5 | D27: $100,926 | E27: $48.52 | F27: $17.59 | G27: $66.11 | H27: 40.00 | I27: $2,644.46
A28: State Engineer - State Office | B28: 12 | C28: 5 | D28: $100,926 | E28: $48.52 | F28: $17.59 | G28: $66.11 | H28: 20.00 | I28: $1,322.23
A29: State Environmental Coordinator - State Office | B29: 12 | C29: 5 | D29: $100,926 | E29: $48.52 | F29: $17.59 | G29: $66.11 | H29: 5.00 | I29: $330.56
A30: Loan Specialist - National Office | B30: 13 | C30: 5 | D30: $120,018 | E30: $57.70 | F30: $20.92 | G30: $78.62 | H30: 30.00 | I30: $2,358.53
A31: Branch Chief - National Office | B31: 14 | C31: 5 | D31: $141,824 | E31: =(D31/52)/40 -> $68.18 | F31: =E31*$K$18 -> $24.72 | G31: =E31+F31 -> $92.90 | H31: 5.00 | I31: =H31*G31 -> $464.51
A32: Water Programs Director - National Office | B32: 15 | C32: 5 | D32: $166,818 | E32: =(D32/52)/40 -> $80.20 | F32: =E32*$K$18 -> $29.07 | G32: =E32+F32 -> $109.27 | H32: 5.00 | I32: =H32*G32 -> $546.37
A33: Graduation Reviews
A34: Loan Specialist - Filed Office (for graduation reviews) | B34: 12 | C34: 5 | D34: $100,926 | E34: =(D34/52)/40 -> $48.52 | F34: =E34*$K$18 -> $17.59 | G34: =E34+F34 -> $66.11 | H34: 2.00 | I34: =ROUND((G34*H34),2) -> $132.22 | J34: 3,061 | K34: =J34*I34 -> $404,725
